[Event "Satranc Arena IM Series-1 2024"]
[Site "Izmir"]
[Date "2024.03.19"]
[Round "4.1"]
[White "Aydin, Gulenay"]
[Black "Baltag, Iulian"]
[Result "0-1"]
[ECO "B22"]
[WhiteElo "2152"]
[BlackElo "2412"]
[Annotator "TA"]
[PlyCount "180"]
[EventDate "2024.03.18"]
[EventCountry "TUR"]
[SourceTitle "playchess.com"]
[Source "ChessBase"]
[SourceQuality "1"]
[TimeControl "5400+30"]

{[%evp 15,180,18,14,25,23,16,16,10,33,27,20,0,27,19,19,0,6,-9,-10,-13,-21,-11,-7,-51,-60,-80,-84,-102,-95,-106,-102,-93,-33,-110,-76,-103,-102,-103,-108,-168,-158,-160,-147,-136,-120,-114,-130,-143,-143,-152,-136,-134,-79,-85,-69,-74,-70,-79,-81,-79,-91,-156,-154,-193,-199,-212,-172,-233,-154,-210,-214,-260,-275,-256,-253,-257,-244,-357,-350,-356,-329,-372,-370,-372,-345,-301,-296,-302,-281,-280,-288,-291,-309,-294,-277,-274,-263,-277,-277,-273,-285,-341,-343,-393,-383,-368,-391,-367,-379,-354,-236,-316,-310,-274,-8,-1401,-1085,-2057,-1993,-29976,-29977,-29965,-693,-5409,-83,-83,-83,-693,-195,-1042,-1042,-29964,-29963,-29963,-29964,-29962,-29960,-29974,-29975,-29976,-29972,-29974,-29975,-29973,-29968,-29989,-29990,-29992,-29989,-29989,-29988,-29988,-29989,-29989,-29990,-29989,-29990,-29990,-29991,-29991,-29992,-29992,-29991,-29992,-29993,-29993,-29994]} 1. e4 {[%emt 0:00:02]} c5 {[%emt 0:00:35]} 2. c3 {[%emt 0:00:08]} Nf6 {[%emt 0:01:18]} 3. e5 {[%emt 0:00:07]} Nd5 {[%emt 0:00:03]} 4. Nf3 {[%emt 0:00:10]} Nc6 {[%emt 0:00:05]} 5. Bc4 {[%emt 0:00:19]} e6 {[%emt 0:00:13]} 6. d4 {[%emt 0:04:16]} cxd4 {[%emt 0:00:06]} 7. cxd4 {[%emt 0:00:03]} d6 {[%emt 0:00:08]} 8. O-O {[%emt 0:00:24]} Be7 {[%emt 0:03:09]} 9. Bd2 {[%emt 0:02:47]} Nb6 {[%emt 0:05:05]} 10. Bb3 {[%emt 0:00:21]} dxe5 {[%emt 0:00:13]} 11. dxe5 {[%emt 0:00:20] Die Stellung ist ausgeglichen.} Nd4 {[%emt 0:00:35]} 12. Nxd4 {[%emt 0:03:25]} Qxd4 {[%emt 0:00:15]} 13. Bc3 {[%emt 0:11:27]} Qh4 {[%emt 0:05:57]} 14. Qf3 {[%emt 0:12:22]} Rb8 {[%emt 0:03:45]} 15. Rd1 {[%emt 0:07:01] Schwarz sollte Rd4 verhindern.} Bd7 $1 {[%emt 0:01:13]} 16. Bd4 {[%emt 0:01:09]} Bc6 {[%emt 0:00:51]} 17. Qg3 {[%emt 0:00:34]} Qxg3 {[%emt 0:01:25]} 18. hxg3 {[%emt 0:00:06]} h5 {[%emt 0:00:27]} 19. a4 {[%emt 0:09:12]} h4 {[%emt 0:05:06]} 20. a5 {[%emt 0:06:18] [#]} Nd7 {[%emt 0:03:51]} (20... Nc8 $6 21. g4 $11) 21. Ba4 {[%emt 0:10:48]} Bxa4 {[%emt 0:00:48]} 22. Rxa4 {[%emt 0:00:03]} hxg3 {[%emt 0:00:18]} 23. fxg3 {[%emt 0:00:21]} Rc8 {[%emt 0:20:15] Pariert Nc3.} (23... Rh5 $17 24. Bxa7 Rc8) 24. Bxa7 {[%emt 0:06:04]} (24. Na3 $15) 24... Nxe5 {[%emt 0:02:24]} 25. Re4 {[%emt 0:05:02]} Nc6 {[%emt 0:00:55][%csl LRa5,LRa7]} 26. Bb6 {[%emt 0:00:16] [#]} Rh5 $1 {[%emt 0:00:41]} 27. Ra4 {[%emt 0:03:48]} (27. Rc4 $17) 27... Rb5 $19 {[%emt 0:04:15]} 28. Ra2 {[%emt 0:09:58]} Nb4 {[%emt 0:10:41]} 29. Ra4 {[%emt 0:00:29]} Nd5 {[%emt 0:00:23] Es drohte Nc3} 30. Bd4 {[%emt 0:01:03][%cal Ob1c3]} Rb4 {[%emt 0:04:23]} 31. Rxb4 {[%emt 0:01:02]} Bxb4 {[%emt 0:00:07]} 32. Na3 {[%emt 0:01:33]} Bxa5 {[%emt 0:02:20]} 33. Bxg7 {[%emt 0:00:40]} f6 {[%emt 0:02:59]} (33... Ne3 $142 34. Rb1 Bb4) 34. Bh6 $17 {[%emt 0:00:06]} Ke7 {[%emt 0:01:13]} 35. Kf2 {[%emt 0:00:45]} Bc7 {[%emt 0:01:00]} 36. Kf3 {[%emt 0:00:38]} Be5 {[%emt 0:01:53]} 37. Rd2 {[%emt 0:00:16]} b6 {[%emt 0:00:20][%cal Oe5b2] Schwarz steht aktiver.} 38. Nb5 {[%emt 0:01:04]} ({Vergiftet wäre} 38. Bf4 $2 Bxb2 39. Rxb2 Rc3+ 40. Kg4 Rxa3 $19) (38. g4 $142) 38... Rc4 {[%emt 0:00:20]} 39. Rd3 {[%emt 0:04:51]} Bxb2 {[%emt 0:00:49]} 40. Bd2 {[%emt 0:00:31]} Be5 {[%emt 0:00:40]} 41. Ra3 {[%emt 0:00:34]} (41. g4 $142) 41... Kf7 {[%emt 0:01:09]} 42. Ra7+ {[%emt 0:00:28]} (42. g4 $17) 42... Kg6 {[%emt 0:00:07]} 43. Na3 {[%emt 0:00:33]} Rd4 {[%emt 0:00:24]} 44. Ke2 {[%emt 0:00:32]} Bxg3 {[%emt 0:01:50]} 45. Nc2 {[%emt 0:00:21]} Nf4+ {[%emt 0:01:13]} 46. Bxf4 {[%emt 0:00:19]} (46. Kd1 $142 Rd8 47. Ra3) 46... Rxf4 $19 {[%emt 0:00:06][%mdl 4096] Endspiel. KRB-KRN} 47. Rb7 {[%emt 0:00:46]} Bf2 {[%emt 0:01:24]} 48. g3 {[%emt 0:00:19]} Rf5 {[%emt 0:02:43]} (48... Bxg3 49. Rxb6 Rf2+ 50. Kd3 $19) 49. Re7 {[%emt 0:00:04]} e5 {[%emt 0:00:55][%cal Of2c5]} (49... Bxg3 50. Ne3 Rf2+ 51. Kd1 $17) 50. Re6 {[%emt 0:00:51]} Bc5 {[%emt 0:02:04]} 51. Ne3 {[%emt 0:00:34]} Rh5 {[%emt 0:00:22] Droht ...Kf7 und aus.} 52. Nd5 {[%emt 0:00:38]} Rh2+ {[%emt 0:00:23]} 53. Kd3 {[%emt 0:00:38]} Rf2 {[%emt 0:00:13]} 54. Ke4 {[%emt 0:00:24]} b5 {[%emt 0:01:39]} 55. Rc6 {[%emt 0:00:37]} Bd4 {[%emt 0:00:15]} 56. Ne7+ {[%emt 0:00:25]} Kg5 {[%emt 0:01:01]} 57. Rc8 {[%emt 0:00:08]} Re2+ {[%emt 0:00:42]} 58. Kd5 {[%emt 0:00:24]} Kg4 {[%emt 0:03:30][%cal Ob5b4]} 59. Rg8+ {[%emt 0:00:05]} Kf3 {[%emt 0:00:06]} 60. Rg6 {[%emt 0:01:02]} Bc3 {[%emt 0:00:33]} 61. Rxf6+ {[%emt 0:00:56]} Kxg3 {[%emt 0:00:06]} 62. Kc5 {[%emt 0:00:21]} Rb2 {[%emt 0:01:03] ...Bb4+ ist eine echte Drohung.} 63. Kd5 {[%emt 0:00:34]} b4 {[%emt 0:00:29][%cal Oe5e4] Und jetzt ...e4! wäre schön.} 64. Kc4 {[%emt 0:00:25]} e4 $2 {[%emt 0:01:49]} (64... Rd2 $19 {Zielt auf ...e4 ab.} 65. Re6 Kf3 66. Rf6+ Ke3 67. Nf5+ Ke2 68. Ng3+ Kd1) 65. Re6 $2 {[%emt 0:00:04][%mdl 8192]} (65. Nf5+ $11 Kf3 66. Nd4+ Ke3 67. Nf5+ Kf3 68. Nd4+ Ke3 69. Nf5+ Kf2 70. Nd4+ Ke3) 65... Kf3 {[%emt 0:00:12] Weiss muss nun ...e3 beachten.} 66. Nd5 {[%emt 0:00:37]} Rd2 {[%emt 0:00:35]} 67. Re8 {[%emt 0:00:56] Pariert Rxd5.} Rd4+ {[%emt 0:02:19]} 68. Kc5 {[%emt 0:00:02]} Rd1 {[%emt 0:00:30]} (68... Rxd5+ $142 69. Kxd5 b3 70. Rxe4 b2 71. Rh4 b1=Q (71... b1=B 72. Rh3+ Kf4 73. Rxc3 $11) 72. Rh3+ Ke2 (72... Kg2 $2 73. Rxc3 Qf5+ 74. Kc4 $19) 73. Rxc3 Qf5+ 74. Kd4 Qd7+ 75. Kc5 Kd2 76. Rc4 Kd3 77. Rb4 Qc7+ 78. Kb5 Kc3 79. Ka6 Qc6+ 80. Rb6 Qa4+ 81. Kb7 Qd7+ 82. Kb8 Kc4 83. Rh6 Qe8+ 84. Kc7 Kc5 85. Ra6 Qe7+ 86. Kb8 Qd7 87. Ra7 Qe8+ 88. Kb7 Qe4+ 89. Kc7 Qe5+ 90. Kb7 Kb5 91. Ra2 Qd5+ 92. Kc7 Qxa2 93. Kd6 Qe2 94. Kd5 Qe3 95. Kd6 Qe4 96. Kd7 Qe5 97. Kc8 Qe7 98. Kb8 Kc6 99. Kc8 Qf8#) 69. Kc4 {[%emt 0:00:35]} Bd2 $2 {[%emt 0:01:10]} (69... Rxd5 $19 {bietet bessere Gewinnchancen.} 70. Rf8+ Kg3 71. Rg8+ Kf2 72. Kxd5 e3 73. Rf8+ Ke1) 70. Rf8+ $17 {[%emt 0:00:57]} Ke2 {[%emt 0:00:11]} 71. Rf7 $2 {[%emt 0:00:22][%mdl 8192]} (71. Re8 $17) 71... Rf1 $2 {[%emt 0:02:22]} (71... Rc1+ 72. Kd4 e3) 72. Re7 $2 {[%emt 0:00:28]} (72. Rxf1 Kxf1 73. Nxb4) 72... e3 $19 {[%emt 0:00:38] ...Rf5 wäre nun fies.} 73. Nxe3 {[%emt 0:00:20]} Rf4+ {[%emt 0:00:12] Schwarz setzt Matt.} ({Schwächer ist} 73... Bxe3 74. Kxb4 Kd3 75. Re5 Bd2+ 76. Kc5 Be3+ 77. Kb4 Bd2+ 78. Kb5 $17) 74. Kb3 {[%emt 0:00:40]} Bxe3 {[%emt 0:00:06] KRB-KR} 75. Re5 {[%emt 0:00:26]} Rd4 {[%emt 0:01:08]} 76. Rb5 {[%emt 0:00:24]} Bd2 {[%emt 0:00:09]} 77. Rh5 {[%emt 0:00:39]} Bf4 {[%emt 0:01:07]} 78. Rh3 {[%emt 0:00:41]} Bd6 {[%emt 0:00:09]} 79. Rh6 {[%emt 0:00:27]} Rd3+ {[%emt 0:00:23]} 80. Kc2 {[%emt 0:00:14]} b3+ {[%emt 0:00:25]} 81. Kb1 {[%emt 0:00:20]} Ba3 {[%emt 0:00:29][%cal Rd3d1]} 82. Rh2+ {[%emt 0:00:19]} Ke3 {[%emt 0:00:14][%cal Rd3d1]} 83. Rh3+ {[%emt 0:00:10]} Kd2 {[%emt 0:00:28]} 84. Rh2+ {[%emt 0:00:13]} Kc3 {[%emt 0:00:20][%cal Rd3d1]} 85. Rh1 {[%emt 0:00:03]} Rg3 {[%emt 0:00:13]} 86. Rf1 {[%emt 0:00:52]} Bc5 {[%emt 0:00:09]} 87. Rc1+ {[%emt 0:00:07]} Kb4 {[%emt 0:00:05]} 88. Rd1 {[%emt 0:00:11]} Rg1 {[%emt 0:00:06]} 89. Kb2 {[%emt 0:00:04]} Rg2+ {[%emt 0:00:21]} 90. Kb1 {[%emt 0:00:03]} Ka3 {[%emt 0:00:39] Gewichteter Fehlerwert: Weiß=0.17 (sehr präzise) /Schwarz=0.08 (makellos) .  Verlustzug:     	Weiß=2     	---        Gewinn verpasst:   	---       	Schwarz=1     Fehler:       	Weiß=7     	Schwarz=3     Ungenau:       	Weiß=5     	Schwarz=4     OK:         	Weiß=17    	Schwarz=26    Bester:       	Weiß=4     	Schwarz=7     Stark:        	---       	Schwarz=2} 0-1

[Event "Satranc Arena IM Series-1 2024"]
[Site "Izmir"]
[Date "2024.03.19"]
[Round "4.2"]
[White "Ozsakallioglu, Okan"]
[Black "Gur, Ali"]
[Result "1-0"]
[ECO "B76"]
[WhiteElo "2365"]
[BlackElo "1848"]
[Annotator "TA"]
[PlyCount "143"]
[EventDate "2024.03.18"]
[EventCountry "TUR"]
[SourceTitle "playchess.com"]
[Source "ChessBase"]
[SourceQuality "1"]
[TimeControl "5400+30"]

{[%evp 18,143,107,72,104,105,119,89,221,232,223,219,227,243,416,424,400,417,416,397,391,375,387,308,309,313,299,253,301,310,309,258,256,260,243,215,220,194,197,174,200,208,216,211,216,202,204,206,214,183,182,106,109,112,95,85,81,28,40,21,42,16,25,16,44,40,69,22,39,12,12,-116,-116,-125,-116,-119,-127,-127,-134,-109,-42,-58,-22,-28,-8,-8,0,-2,0,0,0,0,0,0,0,0,0,0,0,0,0,0,0,0,41,60,715,413,708,700,650,494,479,0,0,3,1514,1832,7650,5185,29971,4702,4134,1375,29982,29983,29986,29987]} 1. e4 {[%emt 0:00:26]} c5 {[%emt 0:00:06]} 2. Nf3 {[%emt 0:00:03]} d6 {[%emt 0:00:07]} 3. d4 {[%emt 0:00:03]} cxd4 {[%emt 0:00:08]} 4. Nxd4 {[%emt 0:00:03]} Nf6 {[%emt 0:00:06]} 5. Nc3 {[%emt 0:00:03]} g6 {[%emt 0:00:06]} 6. Be3 {[%emt 0:00:03]} Bg7 {[%emt 0:00:06]} 7. f3 {[%emt 0:00:04]} O-O {[%emt 0:00:21]} 8. Qd2 {[%emt 0:00:03]} Be6 {[%emt 0:00:50]} 9. O-O-O {[%emt 0:07:04]} Nc6 {[%emt 0:01:14]} 10. Kb1 {[%emt 0:00:55]} a6 {[%emt 0:02:42]} 11. Nxe6 {[%emt 0:01:22]} fxe6 {[%emt 0:00:02]} 12. Bc4 {[%emt 0:00:08][%cal Bf1c4,Bc4b3,Bb3e6][%mdl 32]} Qd7 {[%emt 0:01:02]} (12... Kf7 $16) 13. Na4 $1 $18 {[%emt 0:01:24] Und jetzt Nb6 wäre schön.} Ne5 {[%emt 0:01:33]} 14. Bb3 {[%emt 0:00:29] Und Nb6 würde nun gewinnen. Ein starkes Läuferpaar.} Qb5 {[%emt 0:02:47]} 15. Nb6 {[%emt 0:00:43]} (15. Bxe6+ Kh8 $18) 15... Nfd7 $2 {[%emt 0:11:47]} (15... Rad8 16. Bxe6+ Kh8) 16. Bxe6+ {[%emt 0:11:23]} (16. Nxa8 Nc4 $18) 16... Kh8 {[%emt 0:00:02]} 17. c4 {[%emt 0:00:14]} Qc6 {[%emt 0:00:28]} 18. Nxa8 {[%emt 0:00:31]} Rxa8 {[%emt 0:00:28]} 19. Qd5 {[%emt 0:01:20] Qxc6 wäre nun fies.} Nf8 {[%emt 0:02:42][%cal Bd7f8,Bf8e6,Be6c7][%mdl 32]} 20. f4 {[%emt 0:00:52]} Nxe6 {[%emt 0:01:45]} 21. fxe5 {[%emt 0:00:20]} (21. Qxe6 Qxe4+ 22. Ka1 Qxe3 23. fxe5 Qxe5 24. Qxe5 Bxe5 $16) 21... Bxe5 {[%emt 0:01:05]} 22. h4 {[%emt 0:00:44]} (22. Qxe6 Qxe4+ 23. Ka1 Bxb2+ (23... Qxe3 24. Rhe1 $16) 24. Kxb2 Qxe6 $19) 22... Nc7 {[%emt 0:02:31]} 23. Qxc6 {[%emt 0:01:30]} bxc6 {[%emt 0:00:02]} 24. h5 {[%emt 0:00:13]} Kg7 {[%emt 0:01:27]} 25. hxg6 {[%emt 0:00:08]} hxg6 {[%emt 0:00:04]} 26. Rdf1 {[%emt 0:01:19]} Rb8 {[%emt 0:01:16]} 27. Rf2 {[%emt 0:00:09]} Ne6 {[%emt 0:03:13]} 28. Rh3 {[%emt 0:04:59]} c5 {[%emt 0:01:48]} 29. Bh6+ {[%emt 0:00:27]} Kg8 {[%emt 0:00:01]} 30. Bc1 {[%emt 0:00:08]} Nd4 {[%emt 0:09:04]} 31. Ra3 {[%emt 0:01:08]} Ra8 {[%emt 0:02:31]} 32. Bg5 {[%emt 0:01:36]} Nc6 {[%emt 0:03:01]} 33. g4 {[%emt 0:06:11]} Bd4 {[%emt 0:05:19]} 34. Rh2 {[%emt 0:10:26]} (34. Rf1 $18) 34... Rf8 $16 {[%emt 0:07:16]} 35. Rh1 {[%emt 0:02:24] Pariert Rf1+.} (35. Rxa6 $2 Rf1+ 36. Bc1 Be3 $19) 35... Rf2 {[%emt 0:09:41]} 36. Bc1 {[%emt 0:00:34]} (36. Rxa6 Rxb2+ 37. Kc1 Nb4 38. Ra8+ Kg7 $11) 36... a5 {[%emt 0:03:06]} 37. Re1 {[%emt 0:01:04]} (37. Rb3 $16) 37... Kf7 $11 {[%emt 0:02:06]} 38. g5 {[%emt 0:03:57]} Ke6 {[%emt 0:01:43]} 39. Rh3 {[%emt 0:05:18]} Ne5 {[%emt 0:01:52]} 40. b3 {[%emt 0:00:38]} Nc6 {[%emt 0:01:14]} 41. Reh1 {[%emt 0:10:29]} Be5 {[%emt 0:02:45] Verhindert R3h2.} 42. Rd3 {[%emt 0:01:14]} (42. Rh6 Nb4 43. a3 (43. Rxg6+ $2 Kf7 $19) 43... Na2 $17) (42. Rd1 $14 {sieht stärker aus.}) 42... Re2 {[%emt 0:02:30]} 43. Re3 {[%emt 0:00:24]} (43. Rh6 Nb4 44. Rd2 (44. Rxg6+ $2 Kf7 $19) 44... Re1 $11) (43. Rdd1 $5) 43... Rg2 {[%emt 0:00:27][%cal Oc6b4]} 44. Rf3 {[%emt 0:01:34]} (44. Rd1 $11 {bleibt in der Remisbreite.}) 44... Nb4 $1 $17 {[%emt 0:01:17]} 45. a3 {[%emt 0:03:23]} (45. Rh6 $2 Rxa2 46. Rxg6+ Kd7 $19) 45... Na2 {[%emt 0:01:00]} 46. Rd1 {[%emt 0:01:43]} (46. Rhh3 $2 Rg1 47. Kc2 (47. Kxa2 $2 Rxc1 $19) 47... Rxc1+ (47... Nxc1 $2 48. Rh6 $19) 48. Kd3 Rb1 $19) 46... Nc3+ {[%emt 0:00:32]} 47. Rxc3 {[%emt 0:00:04]} Bxc3 {[%emt 0:00:06][%mdl 4096] Endspiel. KRB-KRB} 48. Rd3 {[%emt 0:00:03]} Be5 {[%emt 0:00:29]} (48... Be1 $17 49. Rh3 Bg3) 49. Bd2 $15 {[%emt 0:00:31][%cal Oa3a4]} Re2 {[%emt 0:03:38]} 50. Bxa5 {[%emt 0:00:25]} Rxe4 {[%emt 0:00:13]} 51. Bd2 {[%emt 0:00:09]} Kd7 {[%emt 0:00:59]} 52. Kc2 {[%emt 0:00:16]} Rh4 {[%emt 0:00:40]} 53. Rf3 {[%emt 0:01:03]} Bd4 {[%emt 0:01:54]} 54. b4 {[%emt 0:00:25]} cxb4 {[%emt 0:01:38]} 55. axb4 {[%emt 0:00:06]} Be5 {[%emt 0:00:32]} 56. Kb3 {[%emt 0:00:49]} Rh2 {[%emt 0:00:10]} 57. Rd3 {[%emt 0:00:06]} Kc6 {[%emt 0:01:33]} 58. b5+ {[%emt 0:00:51]} Kb7 {[%emt 0:00:45]} 59. Kb4 {[%emt 0:02:14]} Rh1 {[%emt 0:00:32]} 60. c5 {[%emt 0:05:23][%cal Bc4c5,Bc5c6][%mdl 32]} Rh4+ {[%emt 0:00:18]} 61. Ka5 $1 {[%emt 0:00:08] Droht c6+ und aus.} (61. Kb3 dxc5 62. Rd7+ Kb6 63. Rxe7 Bd4 $11) 61... Bd4 $2 {[%emt 0:05:43][%mdl 8192]} (61... dxc5 62. Rd7+ Kc8 63. Rxe7 $16) (61... Rh8 $14) 62. c6+ $18 {[%emt 0:03:45]} Kc7 {[%emt 0:00:01] [#] ( -> ...Bb6+)} 63. Be3 $1 {[%emt 0:00:11]} Rh3 {[%emt 0:02:54]} 64. Rxd4 {[%emt 0:00:42][%cal Od4c4]} Rxe3 {[%emt 0:00:01] [#] KR-KR} 65. Rc4 $2 {[%emt 0:00:34]} ({Weiss kommt nicht vorbei an} 65. Rd1 $1 $18 Ra3+ 66. Kb4) 65... Ra3+ $11 {[%emt 0:00:07]} 66. Kb4 {[%emt 0:00:07]} Ra8 $2 {[%emt 0:00:21][%mdl 8192]} (66... Ra7 $11) 67. Re4 $18 {[%emt 0:00:19]} e5 {[%emt 0:00:44]} 68. Rh4 {[%emt 0:00:03] Beabsichtigt Rh7+ und Matt.} Ra1 {[%emt 0:00:26]} 69. Rh7+ {[%emt 0:00:03]} Kc8 {[%emt 0:00:46]} 70. Kc4 {[%emt 0:00:30]} (70. b6 Rb1+ 71. Kc4 (71. Ka5 Ra1+ 72. Kb5 Rb1+ 73. Kc4 Rxb6 $18) 71... Rxb6 $18) (70. Re7 $142 Kd8 71. Rd7+ Kc8 72. Rxd6) 70... Rb1 {[%emt 0:02:57]} 71. Kd5 {[%emt 0:00:10]} Rxb5+ {[%emt 0:00:27]} 72. Kxd6 {[%emt 0:00:04] Gewichteter Fehlerwert: Weiß=0.17 (sehr präzise) /Schwarz=0.15 (sehr präzise) .  Verlustzug:     	---       	Schwarz=2     Fehler:       	Weiß=4     	Schwarz=3     Ungenau:       	Weiß=2     	Schwarz=5     OK:         	Weiß=22    	Schwarz=22    Bester:       	Weiß=4     	Schwarz=6     Stark:        	Weiß=2     	Schwarz=1} 1-0

[Event "Satranc Arena IM Series-1 2024"]
[Site "Izmir"]
[Date "2024.03.19"]
[Round "4.3"]
[White "Yermolinsky, Alex"]
[Black "Kazimova, Narmin"]
[Result "1-0"]
[ECO "E17"]
[WhiteElo "2421"]
[BlackElo "2147"]
[Annotator "TA"]
[PlyCount "75"]
[EventDate "2024.03.18"]
[EventCountry "TUR"]
[SourceTitle "playchess.com"]
[Source "ChessBase"]
[SourceQuality "1"]
[TimeControl "5400+30"]

{[%evp 14,75,28,25,41,23,26,22,21,12,12,10,8,11,12,0,15,0,0,-4,0,0,8,0,20,19,23,8,27,21,23,26,59,45,58,34,64,68,62,59,59,54,60,65,54,0,234,122,132,136,162,89,111,133,127,133,118,143,145,172,242,263,690,677]} 1. d4 {[%emt 0:00:04]} Nf6 {[%emt 0:00:10]} 2. c4 {[%emt 0:00:11]} e6 {[%emt 0:00:10]} 3. Nf3 {[%emt 0:04:42]} b6 {[%emt 0:00:11]} 4. g3 {[%emt 0:00:06]} Bb7 {[%emt 0:00:13]} 5. Bg2 {[%emt 0:00:09]} Be7 {[%emt 0:00:07]} 6. Nc3 {[%emt 0:00:04]} Ne4 {[%emt 0:00:24]} 7. Bd2 {[%emt 0:00:05]} Bf6 {[%emt 0:01:09]} 8. O-O {[%emt 0:00:08]} d6 {[%emt 0:05:51]} 9. Rc1 {[%emt 0:02:58]} Nd7 {[%emt 0:03:02]} 10. d5 {[%emt 0:00:47]} Nxd2 {[%emt 0:13:11] The position is equal.} 11. Nxd2 {[%emt 0:01:46] [#] dxe6 is the strong threat.} e5 {[%emt 0:03:05]} 12. b4 {[%emt 0:12:12][%cal Bb2b4,Bb4a5][%mdl 32] Black is weak on the light squares} a5 {[%emt 0:01:20]} 13. a3 {[%emt 0:00:06]} O-O {[%emt 0:01:08]} 14. Nb3 {[%emt 0:01:56]} Ba6 {[%emt 0:09:33]} 15. Ne4 {[%emt 0:08:50]} Be7 {[%emt 0:05:39]} 16. bxa5 {[%emt 0:01:45]} f5 {[%emt 0:01:22]} 17. Ned2 {[%emt 0:00:11]} Bf6 {[%emt 0:08:00]} 18. Bh3 {[%emt 0:07:33]} g6 {[%emt 0:02:00]} 19. e4 {[%emt 0:00:06]} f4 {[%emt 0:05:22]} 20. axb6 {[%emt 0:03:15]} cxb6 {[%emt 0:01:21]} 21. a4 {[%emt 0:00:59]} Bc8 {[%emt 0:02:07]} 22. Ra1 {[%emt 0:01:15]} Bg7 {[%emt 0:04:37]} 23. Be6+ {[%emt 0:03:30]} Kh8 {[%emt 0:00:01]} 24. Kg2 {[%emt 0:13:46]} Nf6 {[%emt 0:09:39]} 25. Bxc8 {[%emt 0:00:19]} Qxc8 {[%emt 0:00:05]} 26. a5 {[%emt 0:05:03]} bxa5 {[%emt 0:02:16]} 27. Rxa5 {[%emt 0:02:08]} Rxa5 {[%emt 0:03:52]} 28. Nxa5 {[%emt 0:00:02]} Bh6 {[%emt 0:02:59]} 29. Nc6 {[%emt 0:19:14]} ({Better is} 29. Nab3 $14) 29... Rf7 $2 {[%emt 0:11:49]} (29... fxg3 $11 {and Black is okay.} 30. hxg3 Bxd2 31. Qxd2 Nxe4) 30. f3 {[%emt 0:03:58]} (30. c5 $1 $18 fxg3 31. fxg3 (31. hxg3 Bxd2 32. f3 Bb4 $17) (31. cxd6 gxh2 32. Nxe5 Rf8 $16) 31... Bxd2 32. cxd6 (32. Qxd2 Nxe4 33. Qe1 Rxf1 $11)) 30... fxg3 $16 {[%emt 0:00:25]} 31. hxg3 {[%emt 0:00:02][%cal Oc4c5] aiming for c5!} Qa6 {[%emt 0:03:03] [#]} 32. Rf2 {[%emt 0:03:40]} ({Weaker is} 32. c5 Bxd2 33. Qxd2 Nxe4 $11) ({White should try} 32. Qc2 $1 $18) 32... Be3 {[%emt 0:01:03]} 33. Re2 {[%emt 0:00:11]} Bxd2 {[%emt 0:00:53]} 34. Rxd2 {[%emt 0:01:31][%cal Oc4c5] Threatens to win with c5!} Qxc4 {[%emt 0:00:01][%cal Of6e4]} 35. Rc2 {[%emt 0:00:12]} Qb5 {[%emt 0:01:03]} 36. Nd8 {[%emt 0:00:32]} Rf8 {[%emt 0:00:46]} (36... Ra7 $142) 37. Ne6 $18 {[%emt 0:00:07]} Ra8 {[%emt 0:00:28]} (37... Rg8 38. Qc1 Qa4) 38. Nc7 {[%emt 0:00:47][%csl LRa8,LRb5] Weighted Error Value: White=0.15 (very precise) /Black=0.34.  Loses game:     	---       	Black=1      Mistake:       	White=3     	Black=2      Inaccurate:     	---       	Black=2      OK:         	White=8     	Black=14     Best:        	White=4     	Black=1} 1-0